[Event "Early-Titled-Tuesday-Blitz-March-19-2024"]
[Site "Chess.com"]
[Date "2024.03.19"]
[Round "4"]
[White "bescmelasti"]
[Black "Robert_Chessmood"]
[Result "1-0"]
[WhiteElo "2675"]
[BlackElo "2958"]
[TimeControl "180+1"]
[EndTime "8:41:12 PDT"]
[Termination "bescmelasti won by resignation"]

1. e4 {[%clk 0:03:00.9]} 1... c6 {[%clk 0:02:57.9]} 2. d4 {[%clk 0:02:58.3]}
2... d5 {[%clk 0:02:58]} 3. exd5 {[%clk 0:02:59.2]} 3... cxd5 {[%clk 0:02:58.1]}
4. c3 {[%clk 0:02:59.8]} 4... Nf6 {[%clk 0:02:57.3]} 5. Bd3 {[%clk 0:02:59.4]}
5... Bg4 {[%clk 0:02:57.4]} 6. Ne2 {[%clk 0:02:54.6]} 6... e6 {[%clk 0:02:56]}
7. h3 {[%clk 0:02:50.1]} 7... Bxe2 {[%clk 0:02:43.1]} 8. Qxe2 {[%clk 0:02:49.9]}
8... Bd6 {[%clk 0:02:43]} 9. Nd2 {[%clk 0:02:49.5]} 9... Nc6 {[%clk 0:02:40.2]}
10. Nf3 {[%clk 0:02:49.4]} 10... Qc7 {[%clk 0:02:40.1]} 11. O-O {[%clk 0:02:47]}
11... Bf4 {[%clk 0:02:34.7]} 12. Re1 {[%clk 0:02:41.3]} 12... O-O {[%clk
0:02:27.8]} 13. Ne5 {[%clk 0:02:36]} 13... Bxc1 {[%clk 0:02:24.8]} 14. Raxc1
{[%clk 0:02:36.9]} 14... Nxe5 {[%clk 0:02:25]} 15. dxe5 {[%clk 0:02:37.7]} 15...
Nd7 {[%clk 0:02:24.6]} 16. Qh5 {[%clk 0:02:30.6]} 16... g6 {[%clk 0:02:21.7]}
17. Qg5 {[%clk 0:02:30.9]} 17... Kg7 {[%clk 0:02:09.7]} 18. h4 {[%clk
0:02:12.1]} 18... h6 {[%clk 0:02:06.9]} 19. Qg3 {[%clk 0:02:07.4]} 19... Nc5
{[%clk 0:02:00.6]} 20. Bc2 {[%clk 0:02:02.6]} 20... Qe7 {[%clk 0:01:50.2]} 21.
Rcd1 {[%clk 0:01:56.7]} 21... Rac8 {[%clk 0:01:41.5]} 22. Rd4 {[%clk 0:01:56.4]}
22... h5 {[%clk 0:01:29.2]} 23. Qe3 {[%clk 0:01:49.5]} 23... Nd7 {[%clk
0:01:23.1]} 24. g3 {[%clk 0:01:47]} 24... a6 {[%clk 0:01:22.6]} 25. Kg2 {[%clk
0:01:42.1]} 25... b5 {[%clk 0:01:22.6]} 26. a4 {[%clk 0:01:26.5]} 26... Rc4
{[%clk 0:01:21.8]} 27. axb5 {[%clk 0:01:22.1]} 27... axb5 {[%clk 0:01:22.7]} 28.
Bd3 {[%clk 0:01:14.6]} 28... Rxd4 {[%clk 0:01:22.4]} 29. cxd4 {[%clk 0:01:07.9]}
29... b4 {[%clk 0:01:08.2]} 30. Rc1 {[%clk 0:01:03.1]} 30... Nb6 {[%clk
0:01:08.3]} 31. Rc6 {[%clk 0:00:40.2]} 31... Qb7 {[%clk 0:01:07.3]} 32. Rc5
{[%clk 0:00:36.5]} 32... Rc8 {[%clk 0:00:58.6]} 33. Qg5 {[%clk 0:00:22.7]} 33...
Rxc5 {[%clk 0:00:49.5]} 34. Qf6+ {[%clk 0:00:22.7]} 34... Kg8 {[%clk 0:00:34.1]}
35. dxc5 {[%clk 0:00:23.6]} 35... Nd7 {[%clk 0:00:33.5]} 36. Qe7 {[%clk
0:00:21]} 36... Qc6 {[%clk 0:00:30.2]} 37. Qd6 {[%clk 0:00:21.1]} 37... Nxe5
{[%clk 0:00:18.2]} 38. Qxe5 {[%clk 0:00:20.3]} 38... Qxc5 {[%clk 0:00:18.8]} 39.
Qe3 {[%clk 0:00:09.1]} 39... Qe7 {[%clk 0:00:16.9]} 40. Bc2 {[%clk 0:00:06.4]}
40... Qf6 {[%clk 0:00:15.4]} 41. b3 {[%clk 0:00:06.2]} 41... Qb2 {[%clk
0:00:14.6]} 42. Qd3 {[%clk 0:00:06.1]} 42... Kg7 {[%clk 0:00:10.9]} 43. Bd1
{[%clk 0:00:06]} 43... Qe5 {[%clk 0:00:10.2]} 44. Bf3 {[%clk 0:00:06.2]} 44...
Qb2 {[%clk 0:00:07.9]} 45. Kf1 {[%clk 0:00:05.9]} 45... Qc1+ {[%clk 0:00:07.6]}
46. Ke2 {[%clk 0:00:06.1]} 46... Qb2+ {[%clk 0:00:08]} 47. Ke3 {[%clk
0:00:05.7]} 47... Qc1+ {[%clk 0:00:07.2]} 48. Qd2 {[%clk 0:00:04.2]} 48... Qa1
{[%clk 0:00:02.7]} 49. Qd4+ {[%clk 0:00:04]} 49... Qxd4+ {[%clk 0:00:02.9]} 50.
Kxd4 {[%clk 0:00:04.9]} 50... f5 {[%clk 0:00:02.5]} 51. Bxd5 {[%clk 0:00:03.6]}
51... exd5 {[%clk 0:00:02.6]} 52. Kxd5 {[%clk 0:00:04.5]} 52... f4 {[%clk
0:00:02.2]} 53. gxf4 {[%clk 0:00:02.6]} 53... Kf6 {[%clk 0:00:02.4]} 54. Ke4
{[%clk 0:00:01.8]} 54... Ke6 {[%clk 0:00:01.5]} 55. f5+ {[%clk 0:00:02.4]} 55...
gxf5+ {[%clk 0:00:02.1]} 56. Kf4 {[%clk 0:00:02.4]} 56... Kf6 {[%clk 0:00:02.9]}
57. f3 {[%clk 0:00:02.7]} 57... Ke6 {[%clk 0:00:03]} 58. Kg5 {[%clk 0:00:03.3]}
58... Ke5 {[%clk 0:00:03.7]} 59. Kxh5 {[%clk 0:00:03.5]} 59... Kd4 {[%clk
0:00:03.7]} 60. Kg5 {[%clk 0:00:03.4]} 60... Kc3 {[%clk 0:00:04]} 61. h5 {[%clk
0:00:04]} 61... Kxb3 {[%clk 0:00:04.7]} 62. h6 {[%clk 0:00:04.9]} 62... Kc2
{[%clk 0:00:04.2]} 63. h7 {[%clk 0:00:05.8]} 63... b3 {[%clk 0:00:05.1]} 64.
h8=Q {[%clk 0:00:06.7]} 64... b2 {[%clk 0:00:05.9]} 65. Qxb2+ {[%clk 0:00:06.8]}
65... Kxb2 {[%clk 0:00:06.8]} 66. Kxf5 {[%clk 0:00:07.5]} 66... Kc3 {[%clk
0:00:07]} 67. Ke5 {[%clk 0:00:08]} 67... Kc4 {[%clk 0:00:07]} 68. f4 {[%clk
0:00:08.9]} 68... Kc5 {[%clk 0:00:07.6]} 69. f5 {[%clk 0:00:08.7]} 69... Kc6
{[%clk 0:00:08.5]} 70. Ke6 {[%clk 0:00:09.3]} 70... Kc7 {[%clk 0:00:09.1]} 71.
Ke7 {[%clk 0:00:09.8]} 71... Kc6 {[%clk 0:00:09.3]} 72. f6 {[%clk 0:00:10.7]}
72... Kd5 {[%clk 0:00:10.2]} 73. f7 {[%clk 0:00:11.4]} 1-0

[Event "Early-Titled-Tuesday-Blitz-March-19-2024"]
[Site "Chess.com"]
[Date "2024.03.19"]
[Round "4"]
[White "Lukianoo"]
[Black "VincentKeymer"]
[Result "0-1"]
[WhiteElo "2820"]
[BlackElo "3064"]
[TimeControl "180+1"]
[EndTime "8:41:23 PDT"]
[Termination "VincentKeymer won on time"]

1. e4 {[%clk 0:03:00.9]} 1... c6 {[%clk 0:02:59.6]} 2. d4 {[%clk 0:02:58.9]}
2... d5 {[%clk 0:03:00.5]} 3. e5 {[%clk 0:02:59.5]} 3... Bf5 {[%clk 0:03:00.5]}
4. h4 {[%clk 0:02:59.8]} 4... h6 {[%clk 0:03:00.5]} 5. h5 {[%clk 0:02:55.7]}
5... e6 {[%clk 0:02:57.7]} 6. g4 {[%clk 0:02:53.9]} 6... Be4 {[%clk 0:02:57.5]}
7. f3 {[%clk 0:02:53.9]} 7... Bh7 {[%clk 0:02:58.2]} 8. Bd3 {[%clk 0:02:54.2]}
8... Bxd3 {[%clk 0:02:57.2]} 9. Qxd3 {[%clk 0:02:55.1]} 9... c5 {[%clk
0:02:57.9]} 10. c3 {[%clk 0:02:55.4]} 10... Ne7 {[%clk 0:02:58.2]} 11. f4 {[%clk
0:02:53.1]} 11... Nec6 {[%clk 0:02:57.8]} 12. Nf3 {[%clk 0:02:49.7]} 12... Nd7
{[%clk 0:02:49.3]} 13. f5 {[%clk 0:02:44.7]} 13... cxd4 {[%clk 0:02:32.9]} 14.
cxd4 {[%clk 0:02:45.6]} 14... Qa5+ {[%clk 0:02:31.2]} 15. Nc3 {[%clk 0:02:32.4]}
15... Nb4 {[%clk 0:02:31.3]} 16. Qe2 {[%clk 0:02:29.7]} 16... Rc8 {[%clk
0:02:19.6]} 17. fxe6 {[%clk 0:02:24.1]} 17... fxe6 {[%clk 0:02:18.5]} 18. O-O
{[%clk 0:02:23.3]} 18... Be7 {[%clk 0:02:18.6]} 19. g5 {[%clk 0:02:02.3]} 19...
Qa6 {[%clk 0:02:14.3]} 20. Qg2 {[%clk 0:01:57.2]} 20... Qd3 {[%clk 0:02:06.9]}
21. a3 {[%clk 0:01:29.4]} 21... Nc6 {[%clk 0:01:50.3]} 22. Qg4 {[%clk
0:01:24.2]} 22... Rf8 {[%clk 0:01:32.3]} 23. gxh6 {[%clk 0:01:16.4]} 23... gxh6
{[%clk 0:01:31.2]} 24. Bxh6 {[%clk 0:01:14.3]} 24... Qf5 {[%clk 0:01:31.7]} 25.
Qg6+ {[%clk 0:00:55.4]} 25... Qxg6+ {[%clk 0:01:19.8]} 26. hxg6 {[%clk
0:00:56.3]} 26... Rg8 {[%clk 0:01:20.2]} 27. g7 {[%clk 0:00:56.4]} 27... Bf8
{[%clk 0:01:15.4]} 28. Kf2 {[%clk 0:00:51.5]} 28... Bxg7 {[%clk 0:01:13.5]} 29.
Rg1 {[%clk 0:00:48.6]} 29... Kf7 {[%clk 0:01:13.8]} 30. Bxg7 {[%clk 0:00:38.7]}
30... Rxg7 {[%clk 0:01:14.7]} 31. Rxg7+ {[%clk 0:00:38.6]} 31... Kxg7 {[%clk
0:01:15.6]} 32. Rg1+ {[%clk 0:00:39]} 32... Kf7 {[%clk 0:01:13]} 33. Ke3 {[%clk
0:00:37.2]} 33... Rh8 {[%clk 0:01:05.9]} 34. Nb5 {[%clk 0:00:35.4]} 34... Rh3
{[%clk 0:00:57.2]} 35. Kf2 {[%clk 0:00:34.6]} 35... Kf8 {[%clk 0:00:26.9]} 36.
Rg6 {[%clk 0:00:31.6]} 36... Kf7 {[%clk 0:00:22.4]} 37. Rg1 {[%clk 0:00:24.5]}
37... Kf8 {[%clk 0:00:22.6]} 38. Nd6 {[%clk 0:00:21.9]} 38... Nb6 {[%clk
0:00:18.8]} 39. Rg6 {[%clk 0:00:17.5]} 39... Nc4 {[%clk 0:00:16.5]} 40. Ng5
{[%clk 0:00:17.9]} 40... Rh2+ {[%clk 0:00:10.7]} 41. Kg1 {[%clk 0:00:17.7]}
41... Rxb2 {[%clk 0:00:09.9]} 42. Nxe6+ {[%clk 0:00:17.5]} 42... Ke7 {[%clk
0:00:10.1]} 43. Nxb7 {[%clk 0:00:17.1]} 43... Rxb7 {[%clk 0:00:08.7]} 44. Rg7+
{[%clk 0:00:16.9]} 44... Kxe6 {[%clk 0:00:09.1]} 45. Rxb7 {[%clk 0:00:17.8]}
45... a5 {[%clk 0:00:06]} 46. a4 {[%clk 0:00:17.7]} 46... Nxd4 {[%clk
0:00:06.5]} 47. Kf2 {[%clk 0:00:17.7]} 47... Nc6 {[%clk 0:00:05.4]} 48. Rc7
{[%clk 0:00:16.3]} 48... Nb4 {[%clk 0:00:05.6]} 49. Ke2 {[%clk 0:00:14.4]} 49...
Kxe5 {[%clk 0:00:06.1]} 50. Rh7 {[%clk 0:00:11.9]} 50... Na6 {[%clk 0:00:05.8]}
51. Kd3 {[%clk 0:00:10.4]} 51... Nc5+ {[%clk 0:00:06.1]} 52. Kc3 {[%clk
0:00:10.9]} 52... Nxa4+ {[%clk 0:00:06.5]} 53. Kc2 {[%clk 0:00:11.5]} 53... Nc5
{[%clk 0:00:06.2]} 54. Rh5+ {[%clk 0:00:12.1]} 54... Kd4 {[%clk 0:00:05.3]} 55.
Rh8 {[%clk 0:00:10.8]} 55... a4 {[%clk 0:00:05.6]} 56. Ra8 {[%clk 0:00:10.9]}
56... a3 {[%clk 0:00:06.3]} 57. Kb1 {[%clk 0:00:11]} 57... Ne4 {[%clk
0:00:06.7]} 58. Kc2 {[%clk 0:00:10.6]} 58... Nc3 {[%clk 0:00:06.6]} 59. Kb3
{[%clk 0:00:10.6]} 59... Kd3 {[%clk 0:00:04.6]} 60. Rh8 {[%clk 0:00:09.4]} 60...
a2 {[%clk 0:00:05.1]} 61. Rh3+ {[%clk 0:00:09.6]} 61... Kd4 {[%clk 0:00:04.7]}
62. Rh4+ {[%clk 0:00:09.3]} 62... Kc5 {[%clk 0:00:05.2]} 63. Rh1 {[%clk
0:00:09.4]} 63... d4 {[%clk 0:00:03.9]} 64. Kc2 {[%clk 0:00:09.8]} 64... Na3+
{[%clk 0:00:03.2]} 65. Kb3 {[%clk 0:00:09.8]} 65... Nab1 {[%clk 0:00:04.1]} 66.
Kb2 {[%clk 0:00:10.3]} 66... Kc4 {[%clk 0:00:04.7]} 67. Rh8 {[%clk 0:00:10.3]}
67... Nd2 {[%clk 0:00:04.8]} 68. Rc8+ {[%clk 0:00:10.1]} 68... Kd3 {[%clk
0:00:05.4]} 69. Rd8 {[%clk 0:00:10]} 69... Nb3 {[%clk 0:00:05.6]} 70. Rxd4+
{[%clk 0:00:03.1]} 70... Nxd4 {[%clk 0:00:05.5]} 71. Ka1 {[%clk 0:00:01.2]}
71... Nc2+ {[%clk 0:00:05.8]} 0-1

[Event "Early-Titled-Tuesday-Blitz-March-19-2024"]
[Site "Chess.com"]
[Date "2024.03.19"]
[Round "4"]
[White "Lennis93"]
[Black "malakismayil"]
[Result "1-0"]
[WhiteElo "2769"]
[BlackElo "2511"]
[TimeControl "180+1"]
[EndTime "8:41:24 PDT"]
[Termination "Lennis93 won by checkmate"]

1. d4 {[%clk 0:03:00.9]} 1... d5 {[%clk 0:02:58.4]} 2. Nf3 {[%clk 0:03:01]} 2...
e6 {[%clk 0:02:58.6]} 3. c4 {[%clk 0:03:01.2]} 3... Nf6 {[%clk 0:02:58.5]} 4.
Nc3 {[%clk 0:03:01.7]} 4... Bb4 {[%clk 0:02:57.9]} 5. Qa4+ {[%clk 0:03:01.8]}
5... Nc6 {[%clk 0:02:57.3]} 6. Ne5 {[%clk 0:03:02.4]} 6... Bxc3+ {[%clk
0:02:53.8]} 7. bxc3 {[%clk 0:03:01.2]} 7... Bd7 {[%clk 0:02:54.2]} 8. Nxd7
{[%clk 0:02:39.8]} 8... Qxd7 {[%clk 0:02:51.3]} 9. Ba3 {[%clk 0:02:23.9]} 9...
Ne5 {[%clk 0:02:27.9]} 10. Qxd7+ {[%clk 0:02:20.9]} 10... Nexd7 {[%clk
0:02:28.8]} 11. Rb1 {[%clk 0:02:12.4]} 11... O-O-O {[%clk 0:02:17.4]} 12. f3
{[%clk 0:02:07.8]} 12... Nb6 {[%clk 0:02:08.9]} 13. c5 {[%clk 0:02:02.6]} 13...
Nc4 {[%clk 0:02:08.7]} 14. Bc1 {[%clk 0:02:03.2]} 14... e5 {[%clk 0:01:48.1]}
15. e3 {[%clk 0:01:58.8]} 15... exd4 {[%clk 0:01:45]} 16. cxd4 {[%clk
0:01:46.4]} 16... Rhe8 {[%clk 0:01:27.8]} 17. Kf2 {[%clk 0:01:46]} 17... Na5
{[%clk 0:01:19.9]} 18. Bd2 {[%clk 0:01:40.6]} 18... Nc6 {[%clk 0:01:20.2]} 19.
Bb5 {[%clk 0:01:39.2]} 19... Re6 {[%clk 0:01:20]} 20. Rb3 {[%clk 0:01:37.9]}
20... Ne7 {[%clk 0:01:10.7]} 21. Rhb1 {[%clk 0:01:36.3]} 21... h5 {[%clk
0:00:39.6]} 22. Bd3 {[%clk 0:01:35.1]} 22... b6 {[%clk 0:00:40.1]} 23. Ra3
{[%clk 0:01:31.4]} 23... Kb8 {[%clk 0:00:30.9]} 24. h3 {[%clk 0:01:30.9]} 24...
g5 {[%clk 0:00:20.6]} 25. Rb4 {[%clk 0:01:23.9]} 25... g4 {[%clk 0:00:17.1]} 26.
Rba4 {[%clk 0:01:23.9]} 26... Nc6 {[%clk 0:00:08.2]} 27. Bb5 {[%clk 0:01:22.6]}
27... a5 {[%clk 0:00:06.8]} 28. Rc3 {[%clk 0:01:16.7]} 28... Na7 {[%clk
0:00:06.5]} 29. Bf1 {[%clk 0:01:14.4]} 29... gxf3 {[%clk 0:00:04.7]} 30. gxf3
{[%clk 0:01:14]} 30... Rg8 {[%clk 0:00:05.3]} 31. Rb3 {[%clk 0:01:08.5]} 31...
Ka8 {[%clk 0:00:02.7]} 32. Rba3 {[%clk 0:00:51]} 32... h4 {[%clk 0:00:03]} 33.
Bxa5 {[%clk 0:00:50]} 33... bxa5 {[%clk 0:00:02.3]} 34. Rxa5 {[%clk 0:00:50.2]}
34... Kb7 {[%clk 0:00:03]} 35. Rxa7+ {[%clk 0:00:49.7]} 35... Kc6 {[%clk
0:00:03.7]} 36. Rb3 {[%clk 0:00:37.4]} 36... Kd7 {[%clk 0:00:03.1]} 37. Bb5+
{[%clk 0:00:30.4]} 37... Kd8 {[%clk 0:00:03]} 38. a4 {[%clk 0:00:25.4]} 38...
Rg3 {[%clk 0:00:02.6]} 39. Bf1 {[%clk 0:00:23.8]} 39... Nh5 {[%clk 0:00:01.7]}
40. Rb8+ {[%clk 0:00:21]} 40... Kd7 {[%clk 0:00:01.9]} 41. Rbb7 {[%clk
0:00:21.4]} 41... Rf6 {[%clk 0:00:01.8]} 42. Rxc7+ {[%clk 0:00:20.7]} 42... Kd8
{[%clk 0:00:02.5]} 43. Be2 {[%clk 0:00:13]} 43... Rxh3 {[%clk 0:00:02.3]} 44.
Rd7+ {[%clk 0:00:12]} 44... Ke8 {[%clk 0:00:02.3]} 45. Rxd5 {[%clk 0:00:12]}
45... Ng3 {[%clk 0:00:01.3]} 46. Re5+ {[%clk 0:00:11.1]} 46... Kf8 {[%clk
0:00:01.1]} 47. Bb5 {[%clk 0:00:11.3]} 47... Kg7 {[%clk 0:00:01.5]} 48. Rg5+
{[%clk 0:00:11]} 48... Kh6 {[%clk 0:00:02]} 49. Rg8 {[%clk 0:00:10.7]} 49...
Rh2+ {[%clk 0:00:02.6]} 50. Kg1 {[%clk 0:00:10.4]} 50... Rb2 {[%clk 0:00:02.3]}
51. Rg4 {[%clk 0:00:08.8]} 51... Rxf3 {[%clk 0:00:02.1]} 52. Rxh4+ {[%clk
0:00:09.1]} 52... Kg5 {[%clk 0:00:02.5]} 53. Rf4 {[%clk 0:00:09.7]} 53... Rxf4
{[%clk 0:00:02.4]} 54. exf4+ {[%clk 0:00:10.6]} 54... Kxf4 {[%clk 0:00:03.1]}
55. Rxf7+ {[%clk 0:00:11]} 55... Ke3 {[%clk 0:00:03.7]} 56. d5 {[%clk
0:00:11.1]} 56... Ne4 {[%clk 0:00:03.8]} 57. c6 {[%clk 0:00:10.4]} 57... Nd6
{[%clk 0:00:03.6]} 58. c7 {[%clk 0:00:10.4]} 58... Rb1+ {[%clk 0:00:02.4]} 59.
Rf1 {[%clk 0:00:09.9]} 59... Rb2 {[%clk 0:00:01.7]} 60. Rf6 {[%clk 0:00:09.9]}
60... Ne4 {[%clk 0:00:01.2]} 61. c8=Q {[%clk 0:00:09.1]} 61... Rb1+ {[%clk
0:00:02]} 62. Rf1 {[%clk 0:00:08.4]} 62... Rb2 {[%clk 0:00:02.1]} 63. Qh3+
{[%clk 0:00:07.5]} 63... Kd4 {[%clk 0:00:01.9]} 64. Qd3+ {[%clk 0:00:07.7]}
64... Ke5 {[%clk 0:00:02]} 65. Re1 {[%clk 0:00:07.5]} 65... Rb4 {[%clk
0:00:02.2]} 66. Rxe4+ {[%clk 0:00:06.9]} 66... Rxe4 {[%clk 0:00:02.4]} 67. Qxe4+
{[%clk 0:00:07.4]} 67... Kxe4 {[%clk 0:00:02.7]} 68. d6 {[%clk 0:00:08.1]} 68...
Kd5 {[%clk 0:00:03.4]} 69. d7 {[%clk 0:00:09]} 69... Kc5 {[%clk 0:00:04.3]} 70.
d8=Q {[%clk 0:00:09.3]} 70... Kb4 {[%clk 0:00:04.8]} 71. Qb6 {[%clk 0:00:09.7]}
71... Ka3 {[%clk 0:00:05.1]} 72. a5 {[%clk 0:00:10.2]} 72... Kb3 {[%clk
0:00:04.8]} 73. a6 {[%clk 0:00:10.6]} 73... Kc3 {[%clk 0:00:05.7]} 74. a7 {[%clk
0:00:10.9]} 74... Kb4 {[%clk 0:00:06.6]} 75. a8=Q {[%clk 0:00:11]} 75... Kc3
{[%clk 0:00:07.5]} 76. Qa4 {[%clk 0:00:10.7]} 76... Kd2 {[%clk 0:00:08.4]} 77.
Qf2+ {[%clk 0:00:10.6]} 77... Kc1 {[%clk 0:00:09.3]} 78. Qa1# {[%clk 0:00:10.1]}
1-0

[Event "Early-Titled-Tuesday-Blitz-March-19-2024"]
[Site "Chess.com"]
[Date "2024.03.19"]
[Round "4"]
[White "Kunalm64"]
[Black "Antipov_Mikhail_Al"]
[Result "1/2-1/2"]
[WhiteElo "2637"]
[BlackElo "2909"]
[TimeControl "180+1"]
[EndTime "8:41:25 PDT"]
[Termination "Game drawn by stalemate"]

1. e4 {[%clk 0:03:00]} 1... c5 {[%clk 0:02:57.1]} 2. Nf3 {[%clk 0:03:00.3]} 2...
Nc6 {[%clk 0:02:57.8]} 3. Bb5 {[%clk 0:03:00.5]} 3... e5 {[%clk 0:02:58.1]} 4.
O-O {[%clk 0:02:58.1]} 4... Bd6 {[%clk 0:02:58]} 5. c3 {[%clk 0:02:56.8]} 5...
a6 {[%clk 0:02:57.5]} 6. Bxc6 {[%clk 0:02:15.9]} 6... dxc6 {[%clk 0:02:58.4]} 7.
d4 {[%clk 0:02:16.3]} 7... exd4 {[%clk 0:02:47.6]} 8. cxd4 {[%clk 0:02:17.2]}
8... Bg4 {[%clk 0:02:45.7]} 9. dxc5 {[%clk 0:02:01.2]} 9... Bxc5 {[%clk
0:02:45.1]} 10. Qb3 {[%clk 0:01:54.7]} 10... Qe7 {[%clk 0:02:06.2]} 11. Be3
{[%clk 0:01:51.1]} 11... Bxe3 {[%clk 0:01:54.9]} 12. Qxe3 {[%clk 0:01:49.9]}
12... Nf6 {[%clk 0:01:55.5]} 13. Nc3 {[%clk 0:01:48.2]} 13... O-O {[%clk
0:01:56]} 14. h3 {[%clk 0:01:45.3]} 14... Bxf3 {[%clk 0:01:46.9]} 15. Qxf3
{[%clk 0:01:45]} 15... Rad8 {[%clk 0:01:46]} 16. Rad1 {[%clk 0:01:44.1]} 16...
Nd7 {[%clk 0:01:46.2]} 17. Qe2 {[%clk 0:01:27.3]} 17... Ne5 {[%clk 0:01:38.6]}
18. Rxd8 {[%clk 0:01:26.1]} 18... Rxd8 {[%clk 0:01:39.5]} 19. Rd1 {[%clk
0:01:26.1]} 19... g6 {[%clk 0:01:28.7]} 20. f4 {[%clk 0:01:01]} 20... Qc5+
{[%clk 0:01:28]} 21. Kh2 {[%clk 0:01:00.5]} 21... Rxd1 {[%clk 0:01:28.6]} 22.
Nxd1 {[%clk 0:01:00.2]} 22... Nc4 {[%clk 0:01:22.8]} 23. b3 {[%clk 0:00:54.4]}
23... Nd6 {[%clk 0:01:22.2]} 24. e5 {[%clk 0:00:53.3]} 24... Nf5 {[%clk
0:01:22.2]} 25. Nf2 {[%clk 0:00:52.1]} 25... Qd4 {[%clk 0:01:18.2]} 26. Qf3
{[%clk 0:00:48.8]} 26... h5 {[%clk 0:01:17.9]} 27. g4 {[%clk 0:00:43.5]} 27...
hxg4 {[%clk 0:01:16.7]} 28. hxg4 {[%clk 0:00:43.7]} 28... Nh4 {[%clk 0:01:12.2]}
29. Qg3 {[%clk 0:00:41]} 29... g5 {[%clk 0:01:12.8]} 30. fxg5 {[%clk 0:00:24.9]}
30... Ng6 {[%clk 0:01:10.6]} 31. Nd3 {[%clk 0:00:23.8]} 31... Qe4 {[%clk
0:00:55.4]} 32. Nf2 {[%clk 0:00:16.7]} 32... Qe2 {[%clk 0:00:48.5]} 33. e6
{[%clk 0:00:15.9]} 33... Qxe6 {[%clk 0:00:47.3]} 34. Qb8+ {[%clk 0:00:10.3]}
34... Kg7 {[%clk 0:00:47.3]} 35. Qxb7 {[%clk 0:00:10.1]} 35... Qd6+ {[%clk
0:00:46.7]} 36. Kg1 {[%clk 0:00:09.2]} 36... a5 {[%clk 0:00:42.5]} 37. Qb6
{[%clk 0:00:08.8]} 37... Qd5 {[%clk 0:00:40.7]} 38. Qe3 {[%clk 0:00:08.3]} 38...
Nh4 {[%clk 0:00:20.3]} 39. Qc3+ {[%clk 0:00:08.2]} 39... Kg6 {[%clk 0:00:17.5]}
40. Qd3+ {[%clk 0:00:07.9]} 40... Kxg5 {[%clk 0:00:17.9]} 41. Qxd5+ {[%clk
0:00:06.9]} 41... cxd5 {[%clk 0:00:18.8]} 42. a3 {[%clk 0:00:06.6]} 42... Kf4
{[%clk 0:00:14.5]} 43. b4 {[%clk 0:00:06.4]} 43... axb4 {[%clk 0:00:11.4]} 44.
axb4 {[%clk 0:00:06.9]} 44... Nf3+ {[%clk 0:00:12.1]} 45. Kf1 {[%clk 0:00:06.9]}
45... Nd4 {[%clk 0:00:13]} 46. Kg2 {[%clk 0:00:04]} 46... f6 {[%clk 0:00:07.5]}
47. Kh3 {[%clk 0:00:04.3]} 47... Ke3 {[%clk 0:00:05.2]} 48. Nd1+ {[%clk
0:00:04.3]} 48... Kd2 {[%clk 0:00:03.3]} 49. Nf2 {[%clk 0:00:04.5]} 49... Kc3
{[%clk 0:00:03.6]} 50. g5 {[%clk 0:00:04.5]} 50... fxg5 {[%clk 0:00:02.7]} 51.
Kg4 {[%clk 0:00:05]} 51... Kxb4 {[%clk 0:00:02.5]} 52. Kxg5 {[%clk 0:00:05.4]}
52... Kc3 {[%clk 0:00:02.2]} 53. Kf4 {[%clk 0:00:05.5]} 53... Nc2 {[%clk
0:00:01.7]} 54. Ke5 {[%clk 0:00:05.2]} 54... d4 {[%clk 0:00:01.8]} 55. Ne4+
{[%clk 0:00:05.1]} 55... Kd3 {[%clk 0:00:02.5]} 56. Nc5+ {[%clk 0:00:04.9]}
56... Ke3 {[%clk 0:00:03]} 57. Kd5 {[%clk 0:00:04.9]} 57... Ne1 {[%clk 0:00:03]}
58. Kc4 {[%clk 0:00:04.9]} 58... Nf3 {[%clk 0:00:03.7]} 59. Nb3 {[%clk
0:00:04.5]} 59... d3 {[%clk 0:00:03.5]} 60. Kc3 {[%clk 0:00:04.7]} 60... Ng5
{[%clk 0:00:03.5]} 61. Nd2 {[%clk 0:00:04.2]} 61... Nf7 {[%clk 0:00:02.5]} 62.
Nc4+ {[%clk 0:00:04.2]} 62... Ke2 {[%clk 0:00:03.1]} 63. Nd2 {[%clk 0:00:03.3]}
63... Nd6 {[%clk 0:00:03.5]} 64. Nb3 {[%clk 0:00:03]} 64... Ke3 {[%clk
0:00:02.9]} 65. Kb2 {[%clk 0:00:01.3]} 65... Nf5 {[%clk 0:00:01.8]} 66. Kc1
{[%clk 0:00:01.8]} 66... Nd4 {[%clk 0:00:02.1]} 67. Nxd4 {[%clk 0:00:01.6]}
67... Kxd4 {[%clk 0:00:02.7]} 68. Kd2 {[%clk 0:00:02.3]} 68... Kc4 {[%clk
0:00:03.6]} 69. Kd1 {[%clk 0:00:02.6]} 69... Kc3 {[%clk 0:00:04.5]} 70. Kc1
{[%clk 0:00:03.1]} 70... Kc4 {[%clk 0:00:04.8]} 71. Kd2 {[%clk 0:00:03.6]} 71...
Kd4 {[%clk 0:00:05.7]} 72. Kd1 {[%clk 0:00:04.2]} 72... Ke4 {[%clk 0:00:06]} 73.
Kd2 {[%clk 0:00:04.7]} 73... Kd4 {[%clk 0:00:06.8]} 74. Kd1 {[%clk 0:00:05.2]}
74... Ke3 {[%clk 0:00:07.7]} 75. Ke1 {[%clk 0:00:05.6]} 75... d2+ {[%clk
0:00:08.6]} 76. Kd1 {[%clk 0:00:05.9]} 76... Kd3 {[%clk 0:00:09.5]} 1/2-1/2